[Event "January 9 Early 2024"]
[Site "https://www.chess.com"]
[Date "2024.01.11"]
[Round "5"]
[White "Zgadzaj, Rafal"]
[Black "Senft, Sean"]
[Result "1-0"]
[Board "63"]
[TimeControl "180+1"]
[WhiteFideId "1113712"]
[BlackFideId "2044960"]
[WhiteElo "2347"]
[BlackElo "2528"]
[WhiteTeam "POL"]
[BlackTeam "USA"]
[WhiteClock "0:01:05"]
[BlackClock "0:00:36"]

1. d4 {[%clk 0:03:00]}  d5 {[%clk 0:03:00]} 2. Nf3 {[%clk 0:02:55]}  c6 {[%clk 0:03:00]} 3. Bf4 {[%clk 0:02:53]}  Nf6 {[%clk 0:03:01]} 4. Be5 {[%clk 0:02:52]}  Bf5 {[%clk 0:02:58]} 5. Nbd2 {[%clk 0:02:52]}  e6 {[%clk 0:02:57]} 6. e3 {[%clk 0:02:52]}  Nbd7 {[%clk 0:02:58]} 7. Bd3 {[%clk 0:02:52]}  Bg6 {[%clk 0:02:57]} 8. O-O {[%clk 0:02:50]}  Be7 {[%clk 0:02:56]} 9. Qe2 {[%clk 0:02:49]}  O-O {[%clk 0:02:56]} 10. c3 {[%clk 0:02:48]}  Nxe5 {[%clk 0:02:56]} 11. Nxe5 {[%clk 0:02:47]}  Bh5 {[%clk 0:02:53]} 12. g4 {[%clk 0:02:45]}  Bg6 {[%clk 0:02:52]} 13. Bxg6 {[%clk 0:02:40]}  hxg6 {[%clk 0:02:53]} 14. g5 {[%clk 0:02:39]}  Nd7 {[%clk 0:02:53]} 15. Nxd7 {[%clk 0:02:33]}  Qxd7 {[%clk 0:02:54]} 16. f4 {[%clk 0:02:33]}  f6 {[%clk 0:02:42]} 17. h4 {[%clk 0:02:33]}  Kf7 {[%clk 0:02:38]} 18. Kg2 {[%clk 0:02:31]}  Rh8 {[%clk 0:02:38]} 19. Rh1 {[%clk 0:02:31]}  Rh5 {[%clk 0:02:38]} 20. Qg4 {[%clk 0:02:11]}  Rah8 {[%clk 0:02:36]} 21. Nf3 {[%clk 0:02:02]}  Qc8 {[%clk 0:02:14]} 22. Rag1 {[%clk 0:01:59]}  R8h7 {[%clk 0:02:13]} 23. gxf6 {[%clk 0:01:55]}  gxf6 {[%clk 0:02:12]} 24. Kf2 {[%clk 0:01:54]}  Rg7 {[%clk 0:02:08]} 25. Rh2 {[%clk 0:01:49]}  Qh8 {[%clk 0:02:04]} 26. Ke2 {[%clk 0:01:47]}  b6 {[%clk 0:02:04]} 27. Kd3 {[%clk 0:01:47]}  c5 {[%clk 0:02:05]} 28. Kc2 {[%clk 0:01:45]}  Qc8 {[%clk 0:01:58]} 29. Rhg2 {[%clk 0:01:37]}  b5 {[%clk 0:01:53]} 30. Qxh5 {[%clk 0:01:36]}  gxh5 {[%clk 0:01:44]} 31. Rxg7+ {[%clk 0:01:35]}  Ke8 {[%clk 0:01:45]} 32. Rg8+ {[%clk 0:01:32]}  Bf8 {[%clk 0:01:45]} 33. R1g7 {[%clk 0:01:29]}  cxd4 {[%clk 0:01:24]} 34. Nxd4 {[%clk 0:01:29]}  e5 {[%clk 0:01:24]} 35. Nxb5 {[%clk 0:01:17]}  Qf5+ {[%clk 0:00:36]} 36. Kc1 {[%clk 0:01:05]} 1-0

[Event "January 9 Early 2024"]
[Site "https://www.chess.com"]
[Date "2024.01.11"]
[Round "5"]
[White "Kravtsiv, Martyn"]
[Black "Iturrizaga Bonelli, Eduardo"]
[Result "0-1"]
[Board "67"]
[TimeControl "180+1"]
[WhiteFideId "14113147"]
[BlackFideId "3901211"]
[WhiteElo "2848"]
[BlackElo "2994"]
[WhiteTeam "UKR"]
[BlackTeam "ESP"]
[WhiteClock "0:01:09"]
[BlackClock "0:00:35"]

1. e4 {[%clk 0:03:00]}  c5 {[%clk 0:03:00]} 2. Nf3 {[%clk 0:03:00]}  e6 {[%clk 0:03:00]} 3. d4 {[%clk 0:03:00]}  cxd4 {[%clk 0:03:01]} 4. Nxd4 {[%clk 0:03:00]}  a6 {[%clk 0:03:02]} 5. Be2 {[%clk 0:02:59]}  Nf6 {[%clk 0:03:01]} 6. Nc3 {[%clk 0:02:58]}  d6 {[%clk 0:03:01]} 7. O-O {[%clk 0:02:57]}  Be7 {[%clk 0:03:01]} 8. f4 {[%clk 0:02:57]}  Qc7 {[%clk 0:02:56]} 9. Kh1 {[%clk 0:02:56]}  O-O {[%clk 0:02:56]} 10. Be3 {[%clk 0:02:55]}  Bd7 {[%clk 0:02:55]} 11. a4 {[%clk 0:02:50]}  Nc6 {[%clk 0:02:56]} 12. Nb3 {[%clk 0:02:50]}  b6 {[%clk 0:02:55]} 13. g4 {[%clk 0:02:43]}  d5 {[%clk 0:02:41]} 14. e5 {[%clk 0:02:42]}  Ne4 {[%clk 0:02:40]} 15. Nxe4 {[%clk 0:02:35]}  dxe4 {[%clk 0:02:41]} 16. c3 {[%clk 0:02:32]}  Rfd8 {[%clk 0:02:39]} 17. Qe1 {[%clk 0:02:24]}  Na5 {[%clk 0:02:34]} 18. Nd2 {[%clk 0:01:55]}  Bc6 {[%clk 0:02:27]} 19. b4 {[%clk 0:01:54]}  Rxd2 {[%clk 0:01:55]} 20. bxa5 {[%clk 0:01:54]}  Rb2 {[%clk 0:01:54]} 21. axb6 {[%clk 0:01:46]}  Rxb6 {[%clk 0:01:54]} 22. Bxb6 {[%clk 0:01:27]}  Qxb6 {[%clk 0:01:55]} 23. Rb1 {[%clk 0:01:27]}  Qc5 {[%clk 0:01:38]} 24. Rb4 {[%clk 0:01:26]}  Rd8 {[%clk 0:01:22]} 25. Rc4 {[%clk 0:01:24]}  e3+ {[%clk 0:01:17]} 26. Kg1 {[%clk 0:01:18]}  Qd5 {[%clk 0:01:17]} 27. Rf3 {[%clk 0:01:17]}  Bc5 {[%clk 0:01:00]} 28. h3 {[%clk 0:01:13]}  Qxc4 {[%clk 0:00:54]} 29. Bxc4 {[%clk 0:01:10]}  Bxf3 {[%clk 0:00:54]} 30. Be2 {[%clk 0:01:09]}  Bxe2 {[%clk 0:00:36]} 31. Qxe2 {[%clk 0:01:09]}  Rd1+ {[%clk 0:00:35]} 0-1

[Event "January 9 Early 2024"]
[Site "https://www.chess.com"]
[Date "2024.01.11"]
[Round "5"]
[White "Kurmangaliyeva, Liya"]
[Black "Paikens, Reinis"]
[Result "1/2-1/2"]
[Board "68"]
[TimeControl "180+1"]
[WhiteFideId "13725831"]
[BlackFideId "11624078"]
[WhiteElo "2527"]
[BlackElo "2271"]
[WhiteTeam "KAZ"]
[BlackTeam "LAT"]
[WhiteClock "0:00:21"]
[BlackClock "0:01:21"]

1. d4 {[%clk 0:02:58]}  d5 {[%clk 0:02:59]} 2. c4 {[%clk 0:02:56]}  c6 {[%clk 0:02:59]} 3. Nf3 {[%clk 0:02:55]}  Nf6 {[%clk 0:02:59]} 4. Nc3 {[%clk 0:02:55]}  e6 {[%clk 0:02:59]} 5. e3 {[%clk 0:02:55]}  Be7 {[%clk 0:02:59]} 6. Qc2 {[%clk 0:02:51]}  Nbd7 {[%clk 0:02:59]} 7. g4 {[%clk 0:02:44]}  h6 {[%clk 0:02:56]} 8. h3 {[%clk 0:02:37]}  dxc4 {[%clk 0:02:54]} 9. Bxc4 {[%clk 0:02:37]}  b5 {[%clk 0:02:55]} 10. Bd3 {[%clk 0:02:34]}  Bb7 {[%clk 0:02:55]} 11. Ne4 {[%clk 0:02:14]}  Nxe4 {[%clk 0:02:48]} 12. Bxe4 {[%clk 0:02:14]}  Rc8 {[%clk 0:02:48]} 13. Bd2 {[%clk 0:02:09]}  Nf6 {[%clk 0:02:48]} 14. Bd3 {[%clk 0:02:09]}  a6 {[%clk 0:02:46]} 15. e4 {[%clk 0:01:12]}  c5 {[%clk 0:02:43]} 16. dxc5 {[%clk 0:01:01]}  Bxc5 {[%clk 0:02:42]} 17. Qb1 {[%clk 0:01:00]}  Qb6 {[%clk 0:02:39]} 18. O-O {[%clk 0:00:57]}  O-O {[%clk 0:02:36]} 19. b4 {[%clk 0:00:51]}  Bd4 {[%clk 0:02:06]} 20. Nxd4 {[%clk 0:00:51]}  Qxd4 {[%clk 0:02:06]} 21. Be3 {[%clk 0:00:52]}  Qc3 {[%clk 0:01:59]} 22. Rc1 {[%clk 0:00:51]}  Qa3 {[%clk 0:01:57]} 23. Bc5 {[%clk 0:00:48]}  Rfd8 {[%clk 0:01:57]} 24. Rd1 {[%clk 0:00:43]}  Nxe4 {[%clk 0:01:38]} 25. Bxe4 {[%clk 0:00:40]}  Rxd1+ {[%clk 0:01:37]} 26. Qxd1 {[%clk 0:00:40]}  Bxe4 {[%clk 0:01:38]} 27. Qe2 {[%clk 0:00:34]}  Qf3 {[%clk 0:01:35]} 28. Qxf3 {[%clk 0:00:33]}  Bxf3 {[%clk 0:01:36]} 29. Kh2 {[%clk 0:00:30]}  Be4 {[%clk 0:01:37]} 30. Kg3 {[%clk 0:00:29]}  Bd5 {[%clk 0:01:37]} 31. a4 {[%clk 0:00:27]}  Bc4 {[%clk 0:01:36]} 32. axb5 {[%clk 0:00:28]}  axb5 {[%clk 0:01:33]} 33. Ra7 {[%clk 0:00:26]}  Rd8 {[%clk 0:01:27]} 34. Ra3 {[%clk 0:00:26]}  Rd7 {[%clk 0:01:24]} 35. Be3 {[%clk 0:00:22]}  f6 {[%clk 0:01:23]} 36. Ra6 {[%clk 0:00:21]}  Kf7 {[%clk 0:01:22]} 37. Ra7 {[%clk 0:00:20]}  Rxa7 {[%clk 0:01:21]} 38. Bxa7 {[%clk 0:00:21]} 1/2-1/2

[Event "January 9 Early 2024"]
[Site "https://www.chess.com"]
[Date "2024.01.11"]
[Round "5"]
[White "Pichot, Alan"]
[Black "Vachier-Lagrave, Maxime"]
[Result "0-1"]
[Board "69"]
[TimeControl "180+1"]
[WhiteFideId "110973"]
[BlackFideId "623539"]
[WhiteElo "2825"]
[BlackElo "3169"]
[WhiteTeam "ESP"]
[BlackTeam "FRA"]
[WhiteClock "0:00:10"]
[BlackClock "0:01:02"]

1. e4 {[%clk 0:03:00]}  c5 {[%clk 0:02:57]} 2. Nf3 {[%clk 0:03:00]}  Nc6 {[%clk 0:02:56]} 3. Nc3 {[%clk 0:02:59]}  g6 {[%clk 0:02:55]} 4. Bb5 {[%clk 0:02:58]}  Bg7 {[%clk 0:02:54]} 5. Bxc6 {[%clk 0:02:57]}  bxc6 {[%clk 0:02:53]} 6. O-O {[%clk 0:02:56]}  d6 {[%clk 0:02:49]} 7. h3 {[%clk 0:02:54]}  e5 {[%clk 0:02:45]} 8. a3 {[%clk 0:02:53]}  a5 {[%clk 0:02:45]} 9. d3 {[%clk 0:02:49]}  Ne7 {[%clk 0:02:44]} 10. a4 {[%clk 0:02:47]}  O-O {[%clk 0:02:42]} 11. Nd2 {[%clk 0:02:45]}  f5 {[%clk 0:02:41]} 12. exf5 {[%clk 0:02:28]}  gxf5 {[%clk 0:02:41]} 13. f4 {[%clk 0:02:28]}  exf4 {[%clk 0:02:38]} 14. Rxf4 {[%clk 0:02:16]}  Ng6 {[%clk 0:02:37]} 15. Rf1 {[%clk 0:02:16]}  f4 {[%clk 0:02:34]} 16. Nf3 {[%clk 0:02:09]}  Rb8 {[%clk 0:02:33]} 17. Ne4 {[%clk 0:01:59]}  Bf5 {[%clk 0:02:20]} 18. Re1 {[%clk 0:01:54]}  Bxb2 {[%clk 0:01:37]} 19. Bxb2 {[%clk 0:01:47]}  Rxb2 {[%clk 0:01:38]} 20. Qd2 {[%clk 0:01:45]}  Rb4 {[%clk 0:01:31]} 21. c3 {[%clk 0:01:42]}  Rb7 {[%clk 0:01:31]} 22. c4 {[%clk 0:01:41]}  Rg7 {[%clk 0:01:29]} 23. Kh1 {[%clk 0:01:34]}  Nh4 {[%clk 0:01:26]} 24. Nxh4 {[%clk 0:00:55]}  Qxh4 {[%clk 0:01:27]} 25. Qf2 {[%clk 0:00:55]}  Qh6 {[%clk 0:01:16]} 26. Ra2 {[%clk 0:00:29]}  Bxe4 {[%clk 0:01:03]} 27. Rxe4 {[%clk 0:00:10]}  f3 {[%clk 0:01:04]} 28. Qe3 {[%clk 0:00:10]}  Qxe3 {[%clk 0:01:01]} 29. Rxe3 {[%clk 0:00:10]}  f2 {[%clk 0:01:02]} 0-1

[Event "January 9 Early 2024"]
[Site "https://www.chess.com"]
[Date "2024.01.11"]
[Round "5"]
[White "Mayaud, Raphael"]
[Black "Tiarks, Jann-Christian"]
[Result "0-1"]
[Board "70"]
[TimeControl "180+1"]
[WhiteFideId "627151"]
[BlackFideId "12951595"]
[WhiteElo "2302"]
[BlackElo "2463"]
[WhiteTeam "FRA"]
[BlackTeam "GER"]
[WhiteClock "0:00:11"]
[BlackClock "0:01:15"]

1. d4 {[%clk 0:03:00]}  d5 {[%clk 0:02:59]} 2. Nf3 {[%clk 0:02:59]}  c6 {[%clk 0:02:59]} 3. c4 {[%clk 0:03:00]}  e6 {[%clk 0:02:59]} 4. Nbd2 {[%clk 0:02:55]}  f5 {[%clk 0:02:57]} 5. g3 {[%clk 0:02:55]}  Nf6 {[%clk 0:02:58]} 6. Bg2 {[%clk 0:02:55]}  Be7 {[%clk 0:02:57]} 7. O-O {[%clk 0:02:54]}  O-O {[%clk 0:02:58]} 8. b3 {[%clk 0:02:54]}  Ne4 {[%clk 0:02:56]} 9. Bb2 {[%clk 0:02:54]}  Nd7 {[%clk 0:02:56]} 10. Nxe4 {[%clk 0:02:54]}  fxe4 {[%clk 0:02:56]} 11. Ne5 {[%clk 0:02:54]}  Nxe5 {[%clk 0:02:55]} 12. dxe5 {[%clk 0:02:55]}  Bd7 {[%clk 0:02:52]} 13. f3 {[%clk 0:02:49]}  exf3 {[%clk 0:02:44]} 14. Rxf3 {[%clk 0:02:32]}  Be8 {[%clk 0:02:36]} 15. Rxf8+ {[%clk 0:02:27]}  Bxf8 {[%clk 0:02:36]} 16. cxd5 {[%clk 0:02:23]}  cxd5 {[%clk 0:02:35]} 17. e4 {[%clk 0:02:21]}  Bc5+ {[%clk 0:02:16]} 18. Bd4 {[%clk 0:02:01]}  Qb6 {[%clk 0:02:15]} 19. Bxc5 {[%clk 0:02:01]}  Qxc5+ {[%clk 0:02:16]} 20. Kh1 {[%clk 0:02:01]}  d4 {[%clk 0:02:17]} 21. Rc1 {[%clk 0:01:29]}  Qxe5 {[%clk 0:02:15]} 22. Qd3 {[%clk 0:01:29]}  Bg6 {[%clk 0:02:07]} 23. Rc4 {[%clk 0:01:16]}  Rd8 {[%clk 0:02:06]} 24. h4 {[%clk 0:01:12]}  h6 {[%clk 0:02:02]} 25. Kh2 {[%clk 0:01:12]}  Qd6 {[%clk 0:01:56]} 26. Bh3 {[%clk 0:01:04]}  e5 {[%clk 0:01:54]} 27. Rc2 {[%clk 0:00:51]}  Rf8 {[%clk 0:01:52]} 28. Bg4 {[%clk 0:00:42]}  Qe7 {[%clk 0:01:39]} 29. h5 {[%clk 0:00:40]}  Bh7 {[%clk 0:01:38]} 30. Qc4+ {[%clk 0:00:15]}  Kh8 {[%clk 0:01:37]} 31. Qc7 {[%clk 0:00:15]}  Qxc7 {[%clk 0:01:33]} 32. Rxc7 {[%clk 0:00:14]}  Bxe4 {[%clk 0:01:33]} 33. Re7 {[%clk 0:00:13]}  Bf5 {[%clk 0:01:31]} 34. Bf3 {[%clk 0:00:11]}  Bb1 {[%clk 0:01:16]} 35. Rxe5 {[%clk 0:00:11]}  Rxf3 {[%clk 0:01:15]} 0-1

[Event "January 9 Early 2024"]
[Site "https://www.chess.com"]
[Date "2024.01.11"]
[Round "5"]
[White "Cupid, Kevin"]
[Black "Ambartsumova, Karina"]
[Result "0-1"]
[Board "71"]
[TimeControl "180+1"]
[WhiteFideId "7700512"]
[BlackFideId "4166299"]
[WhiteElo "2323"]
[BlackElo "2599"]
[WhiteTeam "TTO"]
[BlackTeam "RUS"]
[WhiteClock "0:00:09"]
[BlackClock "0:01:05"]

1. d4 {[%clk 0:02:41]}  Nf6 {[%clk 0:02:59]} 2. Nf3 {[%clk 0:02:41]}  e6 {[%clk 0:03:00]} 3. Bg5 {[%clk 0:02:40]}  d5 {[%clk 0:03:00]} 4. e3 {[%clk 0:02:41]}  c5 {[%clk 0:02:55]} 5. c3 {[%clk 0:02:40]}  Be7 {[%clk 0:02:54]} 6. Nbd2 {[%clk 0:02:40]}  b6 {[%clk 0:02:54]} 7. Bd3 {[%clk 0:02:41]}  O-O {[%clk 0:02:55]} 8. O-O {[%clk 0:02:41]}  Ba6 {[%clk 0:02:55]} 9. Qe2 {[%clk 0:02:40]}  Bxd3 {[%clk 0:02:55]} 10. Qxd3 {[%clk 0:02:41]}  Nc6 {[%clk 0:02:53]} 11. a3 {[%clk 0:02:40]}  h6 {[%clk 0:02:51]} 12. Bh4 {[%clk 0:02:40]}  Qd7 {[%clk 0:02:32]} 13. b4 {[%clk 0:02:39]}  a6 {[%clk 0:02:18]} 14. Rab1 {[%clk 0:02:34]}  c4 {[%clk 0:02:07]} 15. Qc2 {[%clk 0:02:31]}  b5 {[%clk 0:02:07]} 16. a4 {[%clk 0:02:20]}  Rfb8 {[%clk 0:02:01]} 17. a5 {[%clk 0:02:18]}  Re8 {[%clk 0:01:59]} 18. Ne5 {[%clk 0:01:55]}  Nxe5 {[%clk 0:01:54]} 19. dxe5 {[%clk 0:01:55]}  Ng4 {[%clk 0:01:44]} 20. Bg3 {[%clk 0:01:44]}  f6 {[%clk 0:01:33]} 21. exf6 {[%clk 0:01:14]}  Nxf6 {[%clk 0:01:30]} 22. Rbd1 {[%clk 0:00:53]}  Bd6 {[%clk 0:01:27]} 23. e4 {[%clk 0:00:22]}  Bxg3 {[%clk 0:01:23]} 24. hxg3 {[%clk 0:00:22]}  Qf7 {[%clk 0:01:20]} 25. e5 {[%clk 0:00:13]}  Ng4 {[%clk 0:01:17]} 26. Nf3 {[%clk 0:00:13]}  Qh5 {[%clk 0:01:15]} 27. Rd4 {[%clk 0:00:11]}  Rf8 {[%clk 0:01:10]} 28. Rfd1 {[%clk 0:00:08]}  Rxf3 {[%clk 0:01:06]} 29. gxf3 {[%clk 0:00:08]}  Qh2+ {[%clk 0:01:06]} 30. Kf1 {[%clk 0:00:09]}  Ne3+ {[%clk 0:01:05]} 0-1

[Event "January 9 Early 2024"]
[Site "https://www.chess.com"]
[Date "2024.01.11"]
[Round "5"]
[White "Kukhmazov, Arsen"]
[Black "Cuenca Jimenez, Jose Fernando"]
[Result "1-0"]
[Board "73"]
[TimeControl "180+1"]
[WhiteFideId "24108260"]
[BlackFideId "2255570"]
[WhiteElo "2911"]
[BlackElo "2684"]
[WhiteTeam "FID"]
[BlackTeam "ESP"]
[WhiteClock "0:01:04"]
[BlackClock "0:00:40"]

1. d4 {[%clk 0:03:00]}  d5 {[%clk 0:02:57]} 2. c4 {[%clk 0:03:01]}  e6 {[%clk 0:02:58]} 3. Nf3 {[%clk 0:03:01]}  Nf6 {[%clk 0:02:58]} 4. g3 {[%clk 0:03:01]}  Bb4+ {[%clk 0:02:51]} 5. Bd2 {[%clk 0:03:01]}  a5 {[%clk 0:02:51]} 6. Bg2 {[%clk 0:03:00]}  O-O {[%clk 0:02:50]} 7. Qc2 {[%clk 0:02:59]}  Be7 {[%clk 0:02:43]} 8. O-O {[%clk 0:02:58]}  c6 {[%clk 0:02:44]} 9. Bf4 {[%clk 0:02:55]}  Nbd7 {[%clk 0:02:41]} 10. Nc3 {[%clk 0:02:44]}  dxc4 {[%clk 0:02:39]} 11. Nd2 {[%clk 0:02:44]}  Nd5 {[%clk 0:02:38]} 12. Nxc4 {[%clk 0:02:44]}  Nxf4 {[%clk 0:02:38]} 13. gxf4 {[%clk 0:02:45]}  Qc7 {[%clk 0:02:35]} 14. e3 {[%clk 0:02:46]}  Nf6 {[%clk 0:02:30]} 15. Rac1 {[%clk 0:02:43]}  Nd5 {[%clk 0:02:29]} 16. Rfd1 {[%clk 0:02:42]}  Bd7 {[%clk 0:02:27]} 17. Ne5 {[%clk 0:02:42]}  Nb4 {[%clk 0:02:23]} 18. Qe2 {[%clk 0:02:40]}  f6 {[%clk 0:02:22]} 19. Nxd7 {[%clk 0:02:32]}  Qxd7 {[%clk 0:02:22]} 20. a3 {[%clk 0:02:25]}  Nd5 {[%clk 0:02:21]} 21. Ne4 {[%clk 0:02:24]}  f5 {[%clk 0:02:20]} 22. Nc5 {[%clk 0:02:02]}  Bxc5 {[%clk 0:02:20]} 23. Rxc5 {[%clk 0:02:03]}  Kh8 {[%clk 0:02:19]} 24. Kh1 {[%clk 0:02:02]}  Rg8 {[%clk 0:02:16]} 25. Qd2 {[%clk 0:02:02]}  a4 {[%clk 0:02:15]} 26. Rg1 {[%clk 0:01:54]}  Qe7 {[%clk 0:02:12]} 27. Rcc1 {[%clk 0:01:44]}  g5 {[%clk 0:02:01]} 28. fxg5 {[%clk 0:01:44]}  Rxg5 {[%clk 0:02:01]} 29. Bf3 {[%clk 0:01:41]}  Rag8 {[%clk 0:01:57]} 30. Rxg5 {[%clk 0:01:42]}  Qxg5 {[%clk 0:01:57]} 31. Qe2 {[%clk 0:01:33]}  Qh4 {[%clk 0:01:32]} 32. Rg1 {[%clk 0:01:30]}  Rxg1+ {[%clk 0:01:27]} 33. Kxg1 {[%clk 0:01:31]}  Qd8 {[%clk 0:01:21]} 34. Qc2 {[%clk 0:01:13]}  Qb6 {[%clk 0:01:04]} 35. Bd1 {[%clk 0:01:12]}  Qa5 {[%clk 0:01:00]} 36. Kg2 {[%clk 0:01:12]}  Kg7 {[%clk 0:00:54]} 37. Qc4 {[%clk 0:01:06]}  Qd2 {[%clk 0:00:49]} 38. Qe2 {[%clk 0:01:05]}  Nxe3+ {[%clk 0:00:40]} 39. fxe3 {[%clk 0:01:04]} 1-0

[Event "January 9 Early 2024"]
[Site "https://www.chess.com"]
[Date "2024.01.11"]
[Round "5"]
[White "Indjic, Aleksandar"]
[Black "Koshulyan, Egor A."]
[Result "1-0"]
[Board "76"]
[TimeControl "180+1"]
[WhiteFideId "911925"]
[BlackFideId "24237000"]
[WhiteElo "2890"]
[BlackElo "2672"]
[WhiteTeam "SRB"]
[BlackTeam "RUS"]
[WhiteClock "0:01:38"]
[BlackClock "0:00:06"]

1. d4 {[%clk 0:03:00]}  d5 {[%clk 0:02:56]} 2. c4 {[%clk 0:03:01]}  e6 {[%clk 0:02:13]} 3. Nc3 {[%clk 0:02:59]}  Nf6 {[%clk 0:02:12]} 4. Bg5 {[%clk 0:03:00]}  Be7 {[%clk 0:01:43]} 5. e3 {[%clk 0:02:59]}  O-O {[%clk 0:01:39]} 6. Nf3 {[%clk 0:02:58]}  a6 {[%clk 0:01:36]} 7. h4 {[%clk 0:02:55]}  dxc4 {[%clk 0:01:28]} 8. Bxc4 {[%clk 0:02:54]}  b5 {[%clk 0:01:29]} 9. Bd3 {[%clk 0:02:53]}  Bb7 {[%clk 0:01:29]} 10. Qc2 {[%clk 0:02:53]}  h6 {[%clk 0:01:29]} 11. Ne4 {[%clk 0:02:53]}  Nd5 {[%clk 0:01:22]} 12. Bxe7 {[%clk 0:02:51]}  Qxe7 {[%clk 0:01:23]} 13. Nc5 {[%clk 0:02:51]}  Nb4 {[%clk 0:01:18]} 14. Qd2 {[%clk 0:02:39]}  Nxd3+ {[%clk 0:01:18]} 15. Qxd3 {[%clk 0:02:36]}  Bxf3 {[%clk 0:01:13]} 16. gxf3 {[%clk 0:02:37]}  Nd7 {[%clk 0:01:14]} 17. Rc1 {[%clk 0:02:36]}  Nxc5 {[%clk 0:01:13]} 18. Rxc5 {[%clk 0:02:35]}  Rfd8 {[%clk 0:01:14]} 19. Qe4 {[%clk 0:02:35]}  Rab8 {[%clk 0:00:57]} 20. Rg1 {[%clk 0:02:35]}  Qf6 {[%clk 0:00:57]} 21. Ke2 {[%clk 0:02:30]}  Re8 {[%clk 0:00:47]} 22. Rxc7 {[%clk 0:02:26]}  e5 {[%clk 0:00:47]} 23. d5 {[%clk 0:02:26]}  Rbc8 {[%clk 0:00:32]} 24. Rc6 {[%clk 0:02:24]}  Rxc6 {[%clk 0:00:27]} 25. dxc6 {[%clk 0:02:24]}  Rc8 {[%clk 0:00:28]} 26. Rc1 {[%clk 0:02:23]}  Qd6 {[%clk 0:00:29]} 27. Qc2 {[%clk 0:02:13]}  Rc7 {[%clk 0:00:28]} 28. Qc5 {[%clk 0:02:12]}  Qe6 {[%clk 0:00:28]} 29. b3 {[%clk 0:02:11]}  Rc8 {[%clk 0:00:27]} 30. e4 {[%clk 0:02:10]}  Kh7 {[%clk 0:00:24]} 31. c7 {[%clk 0:02:09]}  f5 {[%clk 0:00:25]} 32. Qd5 {[%clk 0:02:09]}  Qb6 {[%clk 0:00:18]} 33. Qd7 {[%clk 0:02:08]}  Qb7 {[%clk 0:00:16]} 34. Qxf5+ {[%clk 0:02:07]}  Kh8 {[%clk 0:00:17]} 35. Qd7 {[%clk 0:02:07]}  Kh7 {[%clk 0:00:15]} 36. h5 {[%clk 0:02:05]}  b4 {[%clk 0:00:14]} 37. Rc5 {[%clk 0:02:03]}  a5 {[%clk 0:00:13]} 38. Qf5+ {[%clk 0:01:50]}  Kh8 {[%clk 0:00:13]} 39. Qxe5 {[%clk 0:01:50]}  Qa6+ {[%clk 0:00:14]} 40. Ke1 {[%clk 0:01:50]}  Qd3 {[%clk 0:00:14]} 41. Qf5 {[%clk 0:01:39]}  Qb1+ {[%clk 0:00:08]} 42. Ke2 {[%clk 0:01:39]}  Qxa2+ {[%clk 0:00:07]} 43. Kf1 {[%clk 0:01:39]}  Qa1+ {[%clk 0:00:06]} 44. Kg2 {[%clk 0:01:39]}  Rxc7 {[%clk 0:00:06]} 45. Rxc7 {[%clk 0:01:38]} 1-0

[Event "January 9 Early 2024"]
[Site "https://www.chess.com"]
[Date "2024.01.11"]
[Round "5"]
[White "Wadsworth, Matthew J"]
[Black "Frayna, Janelle Mae"]
[Result "1-0"]
[Board "77"]
[TimeControl "180+1"]
[WhiteFideId "415804"]
[BlackFideId "5212499"]
[WhiteElo "2639"]
[BlackElo "2457"]
[WhiteTeam "ENG"]
[BlackTeam "PHI"]
[WhiteClock "0:00:07"]
[BlackClock "0:01:18"]

1. e4 {[%clk 0:03:00]}  c6 {[%clk 0:02:22]} 2. c4 {[%clk 0:02:52]}  d5 {[%clk 0:02:21]} 3. exd5 {[%clk 0:02:53]}  cxd5 {[%clk 0:02:22]} 4. cxd5 {[%clk 0:02:53]}  Nf6 {[%clk 0:02:22]} 5. Bb5+ {[%clk 0:02:52]}  Nbd7 {[%clk 0:02:21]} 6. Nc3 {[%clk 0:02:53]}  g6 {[%clk 0:02:22]} 7. d3 {[%clk 0:02:50]}  Bg7 {[%clk 0:02:22]} 8. Nf3 {[%clk 0:02:46]}  O-O {[%clk 0:02:22]} 9. Bf4 {[%clk 0:02:32]}  Nb6 {[%clk 0:02:19]} 10. d6 {[%clk 0:02:31]}  Nfd5 {[%clk 0:02:13]} 11. Bd2 {[%clk 0:02:10]}  Qxd6 {[%clk 0:02:10]} 12. O-O {[%clk 0:02:10]}  Bf5 {[%clk 0:02:09]} 13. Ne4 {[%clk 0:02:06]}  Qd8 {[%clk 0:02:08]} 14. Ba5 {[%clk 0:01:41]}  a6 {[%clk 0:01:59]} 15. Bc4 {[%clk 0:01:40]}  Qb8 {[%clk 0:01:58]} 16. Bb3 {[%clk 0:01:33]}  h6 {[%clk 0:01:55]} 17. Qd2 {[%clk 0:01:15]}  Be6 {[%clk 0:01:53]} 18. Nc5 {[%clk 0:01:13]}  Bg4 {[%clk 0:01:52]} 19. Bd1 {[%clk 0:01:02]}  Rc8 {[%clk 0:01:48]} 20. Rc1 {[%clk 0:01:02]}  Qd6 {[%clk 0:01:44]} 21. d4 {[%clk 0:00:52]}  Rab8 {[%clk 0:01:41]} 22. h3 {[%clk 0:00:51]}  Bf5 {[%clk 0:01:39]} 23. Ne5 {[%clk 0:00:37]}  Nf6 {[%clk 0:01:32]} 24. Bf3 {[%clk 0:00:23]}  Nbd5 {[%clk 0:01:30]} 25. g4 {[%clk 0:00:18]}  b6 {[%clk 0:01:27]} 26. gxf5 {[%clk 0:00:18]}  bxa5 {[%clk 0:01:27]} 27. fxg6 {[%clk 0:00:17]}  fxg6 {[%clk 0:01:27]} 28. Nxg6 {[%clk 0:00:15]}  Nh7 {[%clk 0:01:25]} 29. Bxd5+ {[%clk 0:00:08]}  e6 {[%clk 0:01:24]} 30. Bxe6+ {[%clk 0:00:07]}  Qxe6 {[%clk 0:01:19]} 31. Nxe6 {[%clk 0:00:08]}  Ng5 {[%clk 0:01:18]} 32. Nxg5 {[%clk 0:00:07]}  hxg5 {[%clk 0:01:18]} 33. Qxg5 {[%clk 0:00:08]}  Rb5 {[%clk 0:01:18]} 34. Rxc8+ {[%clk 0:00:07]} 1-0

[Event "January 9 Early 2024"]
[Site "https://www.chess.com"]
[Date "2024.01.11"]
[Round "5"]
[White "Popov, Konstantin"]
[Black "Domingo Nunez, Alejandro"]
[Result "1-0"]
[Board "78"]
[TimeControl "180+1"]
[WhiteFideId "34137910"]
[BlackFideId "22245561"]
[WhiteElo "2911"]
[BlackElo "2694"]
[WhiteTeam "FID"]
[BlackTeam "ESP"]
[WhiteClock "0:00:50"]
[BlackClock "0:00:07"]

1. e4 {[%clk 0:03:00]}  g6 {[%clk 0:03:00]} 2. d4 {[%clk 0:03:00]}  Bg7 {[%clk 0:03:00]} 3. Nc3 {[%clk 0:03:01]}  c6 {[%clk 0:02:59]} 4. Bc4 {[%clk 0:03:01]}  d5 {[%clk 0:02:59]} 5. exd5 {[%clk 0:03:02]}  b5 {[%clk 0:02:59]} 6. Bb3 {[%clk 0:03:03]}  b4 {[%clk 0:03:00]} 7. Nce2 {[%clk 0:03:03]}  cxd5 {[%clk 0:03:00]} 8. a3 {[%clk 0:03:04]}  bxa3 {[%clk 0:03:00]} 9. Rxa3 {[%clk 0:03:05]}  Nf6 {[%clk 0:02:59]} 10. Nf3 {[%clk 0:03:06]}  O-O {[%clk 0:02:59]} 11. O-O {[%clk 0:03:06]}  Nc6 {[%clk 0:02:59]} 12. c3 {[%clk 0:03:06]}  Na5 {[%clk 0:02:58]} 13. Ba2 {[%clk 0:03:05]}  Qc7 {[%clk 0:02:23]} 14. Bf4 {[%clk 0:03:03]}  Qb6 {[%clk 0:02:22]} 15. Ne5 {[%clk 0:02:44]}  Ba6 {[%clk 0:02:06]} 16. Re1 {[%clk 0:02:35]}  Nc4 {[%clk 0:01:48]} 17. Nxc4 {[%clk 0:02:22]}  Bxc4 {[%clk 0:01:41]} 18. b3 {[%clk 0:02:20]}  Bxe2 {[%clk 0:01:39]} 19. Qxe2 {[%clk 0:02:18]}  Rfc8 {[%clk 0:01:31]} 20. b4 {[%clk 0:02:11]}  a5 {[%clk 0:01:04]} 21. bxa5 {[%clk 0:01:47]}  Rxa5 {[%clk 0:01:03]} 22. Rb3 {[%clk 0:01:48]}  Qa7 {[%clk 0:00:43]} 23. Bb1 {[%clk 0:01:45]}  Ra1 {[%clk 0:00:43]} 24. Qxe7 {[%clk 0:01:16]}  Qa4 {[%clk 0:00:19]} 25. Bc2 {[%clk 0:01:03]}  Re8 {[%clk 0:00:16]} 26. Rb8 {[%clk 0:00:52]}  Ne4 {[%clk 0:00:07]} 27. Rxe8+ {[%clk 0:00:50]} 1-0